Cogmind - Beta 12 @@@ ROGUE MODE // 2023.11.28 @ 20:16:06 Player: motadol Result: Destroyed by H-77 Assassin with Coil Gun Performance ------------- Evolutions (6) 3000 Regions Visited (16) 3200 Robots Destroyed (159) 795 Value Destroyed (3881) 3881 Prototype IDs (53) 1060 Alien Tech Used (0) 0 Bonus (669) 669 TOTAL SCORE: 12605 Bonus ------- High Alert Combat Kills 159 Follower Combat Kills 210 Aligned with FarCom 300 Cogmind --------- Core Integrity 0/1150 Matter 232/300 Energy 99/100 System Corruption 4% Temperature Cool (18) Movement Core (50) Location -4/Extension Parts ------- > --- POWER (2) -------- (None) > --- PROPULSION (6) --- (None) > --- UTILITY (9) ------ System Shield > --- WEAPON (2) ------- (None) > --- INVENTORY (5) ---- Antimatter Reactor Cooled VTOL Module Advanced Power Amplifier Advanced Cryofiber Web Improved Hacking Suite Peak State ------------ > --- POWER ------------ Micro Fission Core Micro Fission Core > --- PROPULSION ------- Cooled VTOL Module Cooled VTOL Module Cooled VTOL Module Cooled VTOL Module Cooled VTOL Module Cooled VTOL Module > --- UTILITY ---------- Structural Scanner Machine Analyzer Improved Propulsion Shielding Improved Medium Armor Plating Improved Hacking Suite Improved Hacking Suite Improved Hacking Suite Advanced Hacking Suite System Shield > --- WEAPON ----------- Mini Grenade Launcher Power Sword > --- INVENTORY -------- Cooled VTOL Module Advanced Cryofiber Web ECM Suite Improved Light Armor Plating Improved Hacking Suite [Rating: 86] Favorites ----------- Power Ion Engine Engine Ion Engine Power Core Micro Nuclear Core Reactor Antimatter Reactor Propulsion Light Treads Treads Light Treads Leg Aluminum Leg Flight Unit Improved VTOL Module Utility Hacking Suite Device Structural Scanner Storage High-capacity Storage Unit Processor Advanced Visual Processing Unit Hackware Hacking Suite Protection Hardened Light Armor Plating Weapon Improved Assault Rifle Energy Gun Small Laser Ballistic Gun Improved Assault Rifle Ballistic Cannon Assault Cannon Launcher Mini Grenade Launcher Impact Weapon Maul Slashing Weapon Scythe Special Melee Weapon Improved Datajack Build | -11 -10 -10 -9 -9 -9 -8 -8 -7 -7 -7 -6 -5 -5 -5 -4 -4 ------- Run | Jun Mat Min Mat Min Exi Min Mat Fac Was Fac Fac Fac Was Fac Fac Ext Slots Evolved 12 | . . . 2 . . . 2 2 . . 2 2 . . 2 . Power 1 | . . . . . . . . . . . . . . . 1 . Propulsion 4 | . . . 1 . . . . 1 . . 1 . . . 1 . Utility 7 | . . . 1 . . . 2 1 . . 1 2 . . . . Weapon . | . . . . . . . . . . . . . . . . . Parts Attached 216 | 2 13 . 44 3 . 1 46 17 2 21 17 15 2 21 12 . Power 25 | . 2 . 2 1 . . 6 4 . 3 . 3 . 2 2 . Engine 10 | . 2 . 2 1 . . 4 1 . . . . . . . . Core 14 | . . . . . . . 2 3 . 3 . 3 . 2 1 . Reactor 1 | . . . . . . . . . . . . . . . 1 . Propulsion 49 | 2 2 . 11 . . 1 12 4 . 6 2 1 . 6 2 . Treads 23 | 2 2 . 9 . . 1 9 . . . . . . . . . Leg 2 | . . . 2 . . . . . . . . . . . . . Wheel . | . . . . . . . . . . . . . . . . . Hover . | . . . . . . . . . . . . . . . . . Flight 24 | . . . . . . . 3 4 . 6 2 1 . 6 2 . Utility 81 | . 3 . 9 2 . . 11 8 2 7 11 11 2 9 6 . Device 33 | . 1 . 4 . . . 2 4 1 3 6 2 2 5 3 . Storage 4 | . 1 . . . . . . . . . 3 . . . . . Processor 7 | . . . 2 . . . 1 1 1 1 . 1 . . . . Hackware 9 | . . . . . . . 2 1 . . 1 4 . 1 . . Protection 28 | . 1 . 3 2 . . 6 2 . 3 1 4 . 3 3 . Artifact . | . . . . . . . . . . . . . . . . . Weapon 61 | . 6 . 22 . . . 17 1 . 5 4 . . 4 2 . Energy Gun 1 | . . . . . . . 1 . . . . . . . . . Energy Cannon . | . . . . . . . . . . . . . . . . . Ballistic Gun 26 | . 4 . 12 . . . 10 . . . . . . . . . Ballistic Cannon 9 | . 1 . 6 . . . 2 . . . . . . . . . Launcher 13 | . . . 4 . . . 2 . . 3 2 . . 1 1 . Special Weapon . | . . . . . . . . . . . . . . . . . Impact Weapon 1 | . 1 . . . . . . . . . . . . . . . Slashing Weapon 9 | . . . . . . . 2 1 . 2 1 . . 2 1 . Piercing Weapon . | . . . . . . . . . . . . . . . . . Special Melee Weapon 2 | . . . . . . . . . . . 1 . . 1 . . Unidentified Prototypes 8 | . . . 1 . . . 1 2 1 . 1 2 . . . . Parts Lost 31 | . 2 1 2 2 . . 4 1 . . 1 . . . 15 3 Power 4 | . 1 . . . . . 1 . . . . . . . 2 . Propulsion 8 | . . 1 1 . . . . 1 . . . . . . 3 2 Utility 16 | . . . 1 2 . . 3 . . . . . . . 9 1 Weapon 3 | . 1 . . . . . . . . . 1 . . . 1 . Highest Loss Streak 14 | . 2 1 1 2 . . 2 1 . . 1 . . . 14 3 To Critical Strikes . | . . . . . . . . . . . . . . . . . Average Slot Usage (%) 96 | . 96 100 98 99 100 100 94 98 100 99 97 99 98 99 85 21 Engine 6 | . 14 14 10 11 11 11 8 . . . . . . . . . Core 2 | . . . . . . . . 6 7 6 6 4 5 4 7 . Treads 18 | . 28 28 30 33 33 33 26 . . . . . . . . . Flight 10 | . . . . . . . . 29 30 30 32 29 29 29 29 10 Device 6 | . 9 . 10 4 . . 2 7 7 7 9 5 4 5 5 . Storage 7 | . 14 14 11 11 11 11 9 . . . 4 5 5 1 . . Processor 2 | . . . . . . . 3 7 7 7 2 2 5 5 5 5 Hackware 9 | . . . . . . . 4 22 23 23 21 23 23 27 19 5 Protection 11 | . 1 14 10 17 22 22 20 7 7 6 6 14 11 10 8 . Ballistic Gun 9 | . 13 14 14 11 11 11 17 . . . . . . . . . Ballistic Cannon 3 | . 12 14 6 11 11 11 . . . . . . . . . . Launcher 1 | . . . . . . . . 7 7 6 1 . . 1 3 . Slashing Weapon 2 | . . . . . . . . 7 7 6 6 5 5 4 4 . Naked Turns . | . . . . . . . . . . . . . . . . . Heaviest Build 82 | 11 58 57 63 63 63 63 82 18 13 14 26 27 26 28 27 16 Greatest Support 62 | 40 40 40 60 60 60 60 62 19 19 22 27 27 27 27 38 10 Greatest Overweight (x) 4 | . 1 2 2 1 1 1 4 1 . . . . . 1 1 1 Average Overweight (x) . | . . 1 . . 1 1 . . . . . . . . . . Largest Inventory Capacity 20 | 8 20 20 20 20 20 20 20 20 5 5 10 10 10 10 5 5 Average Capacity 14 | 8 16 20 20 20 20 20 20 5 5 5 8 10 10 6 5 5 Most Carried 20 | 6 17 17 20 20 20 20 20 6 5 5 10 10 10 9 5 5 Average Carried 13 | 6 9 17 19 19 19 19 19 4 4 4 7 8 9 5 4 4 Final Capacity 20 | 8 20 20 20 20 20 20 20 5 5 5 10 10 10 5 5 5 Final Carried 20 | 6 17 17 20 19 20 20 7 5 5 5 10 9 10 5 3 5 Class Distribution -------------------- 43% | Scavenger-Mutant 21% | Mutant 15% | Hacker-Scout 11% | Hacker-Sprinter 4% | Wizard-Scout 3% | Hacker-Ninja Dominant Class ---------------- Mutant | -10/Materials Mutant | -10/Mines Scavenger-Mutant | -9/Materials Scavenger-Mutant | -9/Mines Scavenger-Mutant | -9/Exiles Scavenger-Mutant | -8/Mines Scavenger-Mutant | -8/Materials Hacker-Sprinter | -7/Factory Hacker-Scout | -7/Waste Hacker-Scout | -7/Factory Hacker-Sprinter | -6/Factory Hacker-Sprinter | -5/Factory Hacker-Sprinter | -5/Waste Wizard-Scout | -5/Factory Wizard-Scout | -4/Factory Mutant | -4/Extension Resources | -11 -10 -10 -9 -9 -9 -8 -8 -7 -7 -7 -6 -5 -5 -5 -4 -4 ----------- Run | Jun Mat Min Mat Min Exi Min Mat Fac Was Fac Fac Fac Was Fac Fac Ext Matter Collected 4681 | 250 406 58 1448 100 . 58 1043 289 80 109 324 130 . 218 168 . Remotely . | . . . . . . . . . . . . . . . . . Salvage Created 6012 | 127 429 51 2007 73 . 137 1751 98 . 134 265 587 . 18 335 . Parts 336 | 5 30 3 112 4 . 6 97 13 . 9 19 19 . 4 15 . Haulers Intercepted 18 | . 2 . 5 . . . 6 . . 1 . 4 . . . . Recyclers Shooed 8 | . 1 . 3 . . . 3 . . . . . . . 1 . Parts Field Recycled . | . . . . . . . . . . . . . . . . . Retrieved Matter . | . . . . . . . . . . . . . . . . . Parts Self-Destructed . | . . . . . . . . . . . . . . . . . Prevented . | . . . . . . . . . . . . . . . . . Kills | -11 -10 -10 -9 -9 -9 -8 -8 -7 -7 -7 -6 -5 -5 -5 -4 -4 ------- Run | Jun Mat Min Mat Min Exi Min Mat Fac Was Fac Fac Fac Was Fac Fac Ext Combat Hostiles Destroyed 88 | . 11 2 37 3 . 3 23 . . . 3 . . . 6 . Melee 1 | . . . . . . . . . . . . . . . 1 . Guns 46 | . 4 . 26 . . 1 15 . . . . . . . . . Cannons 26 | . 7 1 9 3 . 2 4 . . . . . . . . . AOE 15 | . . 1 2 . . . 4 . . . 3 . . . 5 . Classes Destroyed 14 | 2 6 . 3 . . 1 1 . . . . . . . 1 . Worker 7 | . 1 . 2 . . . 2 . . . 1 . . . 1 . Builder 6 | . . . 1 . . . 2 3 . . . . . . . . Tunneler 3 | 1 . . . . . . 1 . . . . . . 1 . . Hauler 18 | . 2 . 5 . . . 6 . . 1 . 4 . . . . Recycler 13 | 1 . . 3 . . . 4 . . 1 1 1 . . 2 . Mechanic 2 | . 1 . . . . . . . . . 1 . . . . . Operator 7 | . . . 2 . . . 1 1 . 1 2 . . . . . Watcher 15 | . 3 . 5 . . . 3 . . . 1 3 . . . . Swarmer 20 | . 4 . 9 . . . 4 . . . 3 . . . . . Cutter 6 | . . . . . . . . . . . . . . . 6 . Grunt 43 | . 7 2 18 3 . 2 11 . . . . . . . . . Brawler 2 | . . . . . . 1 1 . . . . . . . . . Sentry 15 | . . . 10 . . . 5 . . . . . . . . . Specialist 2 | . . . . . . . 2 . . . . . . . . . Best Kill Streak 6 | 1 3 2 5 3 . 3 6 2 . 1 5 2 . 1 6 . Combat Bots Only 6 | . 2 2 4 3 . 3 4 . . . 3 . . . 6 . Max Kills in Single Turn 4 | 1 2 1 3 1 . 1 4 1 . 1 2 1 . 1 3 . Gunslinging . | . . . . . . . . . . . . . . . . . Exploded 3 | . . 1 2 . . . 3 . . . 2 . . . 3 . Melee 1 | . . . . . . . . . . . . . . . 1 . Uniques/NPCs Destroyed . | . . . . . . . . . . . . . . . . . Combat | -11 -10 -10 -9 -9 -9 -8 -8 -7 -7 -7 -6 -5 -5 -5 -4 -4 -------- Run | Jun Mat Min Mat Min Exi Min Mat Fac Was Fac Fac Fac Was Fac Fac Ext Damage Taken 7262 | . 513 50 1253 272 . 110 1963 262 20 . 349 . . 148 1777 545 Core 1765 | . 31 7 109 17 . 31 240 21 . . 56 . . 95 668 490 Absorbed by Shields . | . . . . . . . . . . . . . . . . . Redirected to Shielding 108 | . . . . . . . . . . . . . . 5 103 . Regen/Repaired (Parts) 492 | . . . 73 . . . . 14 40 79 184 29 . 73 . . Core Remaining (%) 82 | 100 . 84 . . . 60 56 . . 97 93 . . 90 . . Volleys Fired 336 | 10 51 2 123 10 . 6 123 . . . 5 . . . 6 . Largest 2 | 2 2 2 2 2 . 2 2 . . . 1 . . . 1 . Hottest 88 | 60 55 55 88 67 . 67 84 . . . 30 . . . 30 . Shots Fired 656 | 20 102 4 242 20 . 12 243 . . . 5 . . 2 6 . Gun 511 | 20 51 2 198 10 . 6 224 . . . . . . . . . Cannon 125 | . 51 2 40 10 . 6 16 . . . . . . . . . Launcher 20 | . . . 4 . . . 3 . . . 5 . . 2 6 . Special . | . . . . . . . . . . . . . . . . . Kinetic 622 | 10 102 4 238 20 . 12 236 . . . . . . . . . Thermal 14 | 10 . . . . . . 4 . . . . . . . . . Explosive 17 | . . . 1 . . . 3 . . . 5 . . 2 6 . Electromagnetic 3 | . . . 3 . . . . . . . . . . . . . Robot Hit Streak 29 | 3 8 6 29 4 . 5 24 . . . . . . 1 1 . Robot Miss Streak 4 | 2 4 . 3 3 . 1 3 . . . 2 . . 1 2 . Penetration Max . | . . . . . . . . . . . . . . . . . Secondary Targets 3 | . . . 1 . . . 2 . . . . . . . . . Max Gunslinging Chain 1 | . . . 1 . . . 1 . . . . . . . . . Shots Hit Robots 487 | 11 58 2 172 13 . 9 166 9 . 4 11 18 . 4 10 . Core Hits 221 | 3 22 3 76 5 . 6 69 1 . 3 7 7 . 1 18 . Critical Kills . | . . . . . . . . . . . . . . . . . Critical Parts Destroyed 1 | . . . 1 . . . . . . . . . . . . . Critical Strikes 8 | . 3 . 2 1 . . 1 . . . . 1 . . . . Destroy 1 | . . . 1 . . . . . . . . . . . . . Blast 6 | . 3 . 1 1 . . 1 . . . . . . . . . Sever 1 | . . . . . . . . . . . . 1 . . . . Melee Attacks 223 | . 1 . . . . . 1 49 . 51 33 32 6 25 25 . Impact 1 | . 1 . . . . . . . . . . . . . . . Slashing 219 | . . . . . . . 1 49 . 51 32 31 6 24 25 . Piercing . | . . . . . . . . . . . . . . . . . Sneak Attacks 27 | . . . . . . . 1 4 . 2 6 8 . 3 3 . Combat Hostiles . | . . . . . . . . . . . . . . . . . Follow-up Attacks . | . . . . . . . . . . . . . . . . . Damage Inflicted 12008 | 131 1174 146 3096 318 . 173 3159 549 . 234 816 995 . 212 1005 . Guns 5487 | 131 360 10 2325 124 . 99 2438 . . . . . . . . . Cannons 1738 | . 558 17 584 194 . 74 311 . . . . . . . . . Explosions 1503 | . 250 119 181 . . . 313 . . . 170 . . 24 446 . Melee 3262 | . . . . . . . 91 549 . 234 646 995 . 188 559 . Ramming 18 | . 6 . 6 . . . 6 . . . . . . . . . Kinetic 7061 | 36 918 27 2909 318 . 173 2680 . . . . . . . . . Thermal 533 | 95 250 119 . . . . 69 . . . . . . . . . Explosive 1089 | . . . 136 . . . 313 . . . 170 . . 24 446 . Electromagnetic 45 | . . . 45 . . . . . . . . . . . . . Impact . | . . . . . . . . . . . . . . . . . Slashing 3262 | . . . . . . . 91 549 . 234 646 995 . 188 559 . Piercing . | . . . . . . . . . . . . . . . . . Highest Corruption 10 | . . . . . . . . 2 2 2 2 . 10 3 4 4 Average Corruption 2 | . . . . . . . . 2 2 1 1 . 6 3 2 4 Corruption Purged 11 | . . . . . . . . . . 2 2 . 7 . . . Corruption Blocked . | . . . . . . . . . . . . . . . . . Effects 53 | . . . . . . . . 8 . . 13 . 5 18 1 8 Message Errors 14 | . . . . . . . . 3 . . 6 . 1 3 . 1 Matter Fused 14 | . . . . . . . . 2 . . 4 . 1 2 . 5 Heat Flow Errors 3 | . . . . . . . . . . . 1 . . 1 1 . Energy Discharges 6 | . . . . . . . . . . . 1 . . 5 . . Parts Rejected 2 | . . . . . . . . . . . . . 2 . . . Parts Fused 1 | . . . . . . . . . . . . . 1 . . . Data Loss (minor) 8 | . . . . . . . . 2 . . 1 . . 3 . 2 Data Loss (major) 3 | . . . . . . . . 1 . . . . . 2 . . Misfires 2 | . . . . . . . . . . . . . . 2 . . Overload Shots . | . . . . . . . . . . . . . . . . . Overflow Damage 1170 | . 216 5 12 . . . 76 231 . . 267 182 . . 181 . Projectiles 21 | . 11 . 10 . . . . . . . . . . . . . Explosions 341 | . 205 5 2 . . . 76 . . . 24 . . . 29 . Melee 808 | . . . . . . . . 231 . . 243 182 . . 152 . Knockbacks 20 | . 7 . 9 1 . . 3 . . . . . . . . . Impact . | . . . . . . . . . . . . . . . . . Kinetic 14 | . 6 . 5 1 . . 2 . . . . . . . . . Secondary 6 | . 1 . 4 . . . 1 . . . . . . . . . Self-Inflicted Damage 502 | . 177 . . . . . 46 . . . 77 . . 96 106 . Shots 10 | . 2 . . . . . 1 . . . 2 . . 2 3 . Rammed 5 | . 1 . 2 . . . 2 . . . . . . . . . Targets Rammed 5 | . 1 . 2 . . . 2 . . . . . . . . . Kicked . | . . . . . . . . . . . . . . . . . Crushed . | . . . . . . . . . . . . . . . . . Highest Temperature 405 | . 20 15 129 158 . 225 385 3 25 4 218 2 1 154 405 . Average Temperature 44 | . 9 11 30 90 . 117 88 2 16 4 22 1 1 4 131 . Received Heat Transfer 2004 | . 102 9 522 156 . 63 873 27 27 . 15 . . 9 147 54 Effects 10 | . . . . . . . 4 . . . 1 . . . 5 . Shutdowns 2 | . . . . . . . 1 . . . . . . . 1 . Energy Bleed 2 | . . . . . . . . . . . 1 . . . 1 . Matter Decay 1 | . . . . . . . . . . . . . . . 1 . Short Circuit 3 | . . . . . . . 2 . . . . . . . 1 . Damage (minor) 2 | . . . . . . . 1 . . . . . . . 1 . Siege Activations . | . . . . . . . . . . . . . . . . . Robots Corrupted . | . . . . . . . . . . . . . . . . . Combat Hostiles . | . . . . . . . . . . . . . . . . . Parts Fried . | . . . . . . . . . . . . . . . . . Impact Corruptions 1 | . 1 . . . . . . . . . . . . . . . Robots Melted . | . . . . . . . . . . . . . . . . . Combat Hostiles . | . . . . . . . . . . . . . . . . . Parts Melted . | . . . . . . . . . . . . . . . . . Heat Transferred 723 | 225 200 150 . . . . 148 . . . . . . . . . Parts Sabotaged . | . . . . . . . . . . . . . . . . . Parts Stolen . | . . . . . . . . . . . . . . . . . Parts Stripped . | . . . . . . . . . . . . . . . . . Power Chain Reactions . | . . . . . . . . . . . . . . . . . Missiles Intercepted . | . . . . . . . . . . . . . . . . . Alert | -11 -10 -10 -9 -9 -9 -8 -8 -7 -7 -7 -6 -5 -5 -5 -4 -4 ------- Run | Jun Mat Min Mat Min Exi Min Mat Fac Was Fac Fac Fac Was Fac Fac Ext Peak Influence 810 | 10 238 119 810 360 . 72 379 310 108 66 239 152 43 182 306 138 Initial 308 | . 6 15 42 308 . . 27 163 63 15 3 7 13 18 19 133 Average 194 | 3 102 117 410 226 . 62 206 183 57 33 65 37 26 50 128 132 Maximum Alert Level 3 | . 1 . 3 1 . . 1 1 . . 1 . . . 1 . Low Security (%) 63 | 100 88 100 35 40 . 100 34 63 100 100 99 100 100 100 75 100 Level 1 25 | . 11 . 18 59 . . 65 36 . . . . . . 24 . Level 2 4 | . . . 19 . . . . . . . . . . . . . Level 3 6 | . . . 26 . . . . . . . . . . . . . Level 4 . | . . . . . . . . . . . . . . . . . Level 5 . | . . . . . . . . . . . . . . . . . High Security . | . . . . . . . . . . . . . . . . . Max Security . | . . . . . . . . . . . . . . . . . Squads Dispatched 43 | . 1 . 4 . . . 4 6 . 5 7 2 . 9 5 . Investigation 16 | . 1 . 2 . . . 1 1 . 2 2 2 . 5 . . Extermination 7 | . . . . . . . . 2 . 1 2 . . 1 1 . Reinforcement 18 | . . . 1 . . . 3 3 . 2 2 . . 3 4 . Assault 1 | . . . 1 . . . . . . . . . . . . . Garrison 1 | . . . . . . . . . . . 1 . . . . . Intercept . | . . . . . . . . . . . . . . . . . Searches Triggered . | . . . . . . . . . . . . . . . . . Construction Impeded 1 | . . . . . . . . 1 . . . . . . . . Haulers Reinforced 1 | . . . . . . . . . . . . . . 1 . . Active Scanning Responses . | . . . . . . . . . . . . . . . . . Cargo Convoy Interrupts . | . . . . . . . . . . . . . . . . . Stealth | -11 -10 -10 -9 -9 -9 -8 -8 -7 -7 -7 -6 -5 -5 -5 -4 -4 --------- Run | Jun Mat Min Mat Min Exi Min Mat Fac Was Fac Fac Fac Was Fac Fac Ext Distress Signals 15 | . 1 . 6 . . . 5 . . . . . . 1 1 1 Communications Jammed . | . . . . . . . . . . . . . . . . . Distress Signals . | . . . . . . . . . . . . . . . . . Times Spotted 255 | . 23 5 58 5 . 3 45 28 5 4 22 7 6 12 24 8 Peak Tracking Total 12 | . 4 3 5 3 . 3 4 7 5 2 5 3 6 5 12 10 Tactical Retreats 27 | . . . 2 . . . . 10 . . 7 . . 4 4 . Traps | -11 -10 -10 -9 -9 -9 -8 -8 -7 -7 -7 -6 -5 -5 -5 -4 -4 ------- Run | Jun Mat Min Mat Min Exi Min Mat Fac Was Fac Fac Fac Was Fac Fac Ext Traps Triggered 19 | . 2 . 1 . . . . 4 . 3 4 1 . 4 . . Indirectly . | . . . . . . . . . . . . . . . . . Trap Hack Attempts . | . . . . . . . . . . . . . . . . . Triggered . | . . . . . . . . . . . . . . . . . Disarmed . | . . . . . . . . . . . . . . . . . Reprogrammed . | . . . . . . . . . . . . . . . . . Reused . | . . . . . . . . . . . . . . . . . Traps Extracted . | . . . . . . . . . . . . . . . . . Installed . | . . . . . . . . . . . . . . . . . Triggered . | . . . . . . . . . . . . . . . . . Machines | -11 -10 -10 -9 -9 -9 -8 -8 -7 -7 -7 -6 -5 -5 -5 -4 -4 ---------- Run | Jun Mat Min Mat Min Exi Min Mat Fac Was Fac Fac Fac Was Fac Fac Ext Machines Disabled 15 | . 5 3 1 . . . . . . . 4 . . . 2 . Max in Single Turn 5 | . 5 3 1 . . . . . . . 4 . . . 1 . Garrison Access 7 | . . . . . . . . 1 . 2 1 2 . 1 . . Machines Repaired . | . . . . . . . . . . . . . . . . . Machines Sabotaged . | . . . . . . . . . . . . . . . . . Overloaded Fab Kills . | . . . . . . . . . . . . . . . . . Hacking | -11 -10 -10 -9 -9 -9 -8 -8 -7 -7 -7 -6 -5 -5 -5 -4 -4 --------- Run | Jun Mat Min Mat Min Exi Min Mat Fac Was Fac Fac Fac Was Fac Fac Ext Machines Accessed 120 | . 6 . 14 1 2 . 8 14 . 20 18 14 . 22 1 . Terminals 80 | . 4 . 12 1 . . 7 11 . 11 13 9 . 11 1 . Fabricators 7 | . . . . . . . . . . 2 1 1 . 3 . . Repair Stations 12 | . . . 2 . . . . 1 . 3 2 1 . 3 . . Recycling Units 7 | . 2 . . . . . . . . . 1 1 . 3 . . Scanalyzers 3 | . . . . . . . 1 1 . 1 . . . . . . Garrison Access 9 | . . . . . . . . 1 . 3 1 2 . 2 . . Total Hacks 313 | . 18 . 40 1 2 . 28 34 . 54 44 36 . 53 3 . Successful 190 | . 7 . 20 . 2 . 14 20 . 35 18 28 . 43 3 . Failed 120 | . 11 . 20 1 . . 14 14 . 18 26 7 . 9 . . Catastrophic 16 | . 1 . 2 . . . 1 2 . 2 7 . . 1 . . Database Lockouts 3 | . . . . . . . . . . 1 . 1 . 1 . . Manual 119 | . 10 . 22 1 2 . 15 12 . 12 18 10 . 17 . . Terminals 225 | . 13 . 33 1 . . 25 28 . 32 32 29 . 29 3 . Fabricators 14 | . . . . . . . . . . 4 2 2 . 6 . . Repair Stations 39 | . . . 7 . . . . 2 . 12 6 2 . 10 . . Recycling Units 13 | . 5 . . . . . . . . . 2 1 . 5 . . Scanalyzers 7 | . . . . . . . 3 2 . 2 . . . . . . Garrison Access 13 | . . . . . . . . 2 . 4 2 2 . 3 . . Terminal Hacks 120 | . 4 . 15 . 2 . 11 15 . 18 8 21 . 23 3 . Record 19 | . . . 1 . 1 . . 2 . 3 . 7 . 5 . . Part Schematic 5 | . . . . . . . 1 . . 2 . 2 . . . . Robot Schematic 1 | . . . . . . . . . . . 1 . . . . . Robot Analysis 14 | . 2 . 5 . . . 3 1 . 1 . 2 . . . . Prototype ID Bank 10 | . 1 . 3 . . . 1 2 . 2 . . . 1 . . Level Access Points 6 | . . . . . . . . 1 . 1 2 1 . 1 . . Branch Access Points 1 | . . . . . . . . . . 1 . . . . . . Machine Index 2 | . . . . . . . . . . 1 . . . 1 . . Terminal Index 5 | . . . . . . . 1 1 . . 1 1 . 1 . . Fabricator Index 3 | . . . . . . . 1 1 . . . 1 . . . . Scanalyzer Index 2 | . . . . . . . 1 . . . . 1 . . . . Alert Level 6 | . . . 1 . . . 2 1 . 1 . . . 1 . . Unreport Threat 2 | . . . . . . . . . . 1 . 1 . . . . Locate Traps 10 | . . . . . . . . . . 3 1 2 . 4 . . Maintenance Status 1 | . . . . . . . . 1 . . . . . . . . Transport Status 3 | . . . 3 . . . . . . . . . . . . . Recall Investigation 5 | . . . . . . . . 1 . . . 1 . 3 . . Recall Extermination 4 | . . . . . . . . 1 . 1 1 . . 1 . . Recall Reinforcements 3 | . . . . . . . . . . . . . . 1 2 . Hauler Manifests 8 | . 1 . 1 . . . 1 1 . 1 1 1 . 1 . . Registered Components 1 | . . . . . . . . . . . . . . 1 . . Registered Prototypes 1 | . . . . . . . . . . . . . . 1 . . Zone Layout 7 | . . . 1 . . . . 2 . . 1 1 . 1 1 . EX-Prototype ID Bank 1 | . . . . . 1 . . . . . . . . . . . Fabricator Hacks 14 | . . . . . . . . . . 4 2 2 . 6 . . Load Schematic 7 | . . . . . . . . . . 2 1 1 . 3 . . Build 7 | . . . . . . . . . . 2 1 1 . 3 . . Repair Station Hacks 32 | . . . 5 . . . . 2 . 9 6 2 . 8 . . Scan Component 17 | . . . 3 . . . . 1 . 5 3 1 . 4 . . Repair 15 | . . . 2 . . . . 1 . 4 3 1 . 4 . . Recycling Unit Hacks 10 | . 3 . . . . . . . . . 1 1 . 5 . . Report Inventory 2 | . 2 . . . . . . . . . . . . . . . Retrieve Matter 2 | . . . . . . . . . . . . . . 2 . . Retrieve Components 6 | . 1 . . . . . . . . . 1 1 . 3 . . Scanalyzer 7 | . . . . . . . 3 2 . 2 . . . . . . Insert Component 4 | . . . . . . . 2 1 . 1 . . . . . . Analyze 3 | . . . . . . . 1 1 . 1 . . . . . . Garrison Access Hacks 7 | . . . . . . . . 1 . 2 1 2 . 1 . . Seal Access 7 | . . . . . . . . 1 . 2 1 2 . 1 . . Unauthorized Hacks . | . . . . . . . . . . . . . . . . . Terminals . | . . . . . . . . . . . . . . . . . Fabricators . | . . . . . . . . . . . . . . . . . Repair Stations . | . . . . . . . . . . . . . . . . . Recycling Units . | . . . . . . . . . . . . . . . . . Scanalyzers . | . . . . . . . . . . . . . . . . . Garrison Access . | . . . . . . . . . . . . . . . . . Data Cores Recovered 3 | . . . 1 . . . 1 . . . 1 . . . . . Used 1 | . . . . . . . 1 . . . . . . . . . Hacking Detections 103 | . 5 . 14 1 . . 8 14 . 16 16 11 . 17 1 . Full Trace Events 11 | . . . 1 . . . 1 . . 2 1 2 . 4 . . Feedback Events . | . . . . . . . . . . . . . . . . . Feedback Blocked . | . . . . . . . . . . . . . . . . . Robot Schematics Acquired 1 | . . . . . . . . . . . 1 . . . . . Robots Built . | . . . . . . . . . . . . . . . . . Authchips . | . . . . . . . . . . . . . . . . . Time . | . . . . . . . . . . . . . . . . . Total Robot Build Rating . | . . . . . . . . . . . . . . . . . Part Schematics Acquired 7 | . . . . . . . 1 1 . 3 . 2 . . . . Parts Built 7 | . . . . . . . . . . 2 1 1 . 3 . . Authchips . | . . . . . . . . . . . . . . . . . Time 701 | . . . . . . . . . . 268 67 134 . 232 . . Total Part Build Rating 26 | . . . . . . . . . . 8 4 4 . 10 . . Parts Repaired 15 | . . . 2 . . . . 1 . 4 3 1 . 4 . . Time 570 | . . . 52 . . . . 60 . 170 118 19 . 151 . . Parts Recycled . | . . . . . . . . . . . . . . . . . Recycled Matter . | . . . . . . . . . . . . . . . . . Retrieved Matter . | . . . . . . . . . . . . . . . . . Retrieved Components 7 | . 3 . . . . . . . . . 1 . . 3 . . Parts Scanalyzed 3 | . . . . . . . 1 1 . 1 . . . . . . Part Schematics Acquired 2 | . . . . . . . . 1 . 1 . . . . . . Parts Damaged . | . . . . . . . . . . . . . . . . . Bothacking | -11 -10 -10 -9 -9 -9 -8 -8 -7 -7 -7 -6 -5 -5 -5 -4 -4 ------------ Run | Jun Mat Min Mat Min Exi Min Mat Fac Was Fac Fac Fac Was Fac Fac Ext Used RIF Installer . | . . . . . . . . . . . . . . . . . Robots Hacked 2 | . . . . . . . . . . . 1 1 . . . . Non-combat 2 | . . . . . . . . . . . 1 1 . . . . Combat . | . . . . . . . . . . . . . . . . . Robot Hacks Applied 2 | . . . . . . . . . . . 1 1 . . . . find_chute 1 | . . . . . . . . . . . . 1 . . . . find_fabricator 1 | . . . . . . . . . . . 1 . . . . . Relay Couplers Released . | . . . . . . . . . . . . . . . . . Fabnet Peak Effective % . | . . . . . . . . . . . . . . . . . Robots Rewired . | . . . . . . . . . . . . . . . . . Allies Hacked . | . . . . . . . . . . . . . . . . . Hacks Repelled . | . . . . . . . . . . . . . . . . . Allies | -11 -10 -10 -9 -9 -9 -8 -8 -7 -7 -7 -6 -5 -5 -5 -4 -4 -------- Run | Jun Mat Min Mat Min Exi Min Mat Fac Was Fac Fac Fac Was Fac Fac Ext Total Allies 22 | . . . . 1 . . . . 20 . . . 1 . . . Largest Group 19 | . . . . 1 1 . . . 19 . . . 1 . . . Highest-Rated Group 475 | . . . . 31 31 . . . 475 . . . 31 . . . Highest-Rated Ally 35 | . . . . 31 31 . . . 35 . . . 31 . . . Total Orders . | . . . . . . . . . . . . . . . . . Ally Attacks 134 | . . . . 12 . . . . 115 . . . 7 . . . Total Damage 3974 | . . . . 209 . . . . 3618 . . . 147 . . . Kills 15 | . . . . 2 . . . . 13 . . . . . . . Allies Corrupted . | . . . . . . . . . . . . . . . . . Allies Melted . | . . . . . . . . . . . . . . . . . Intel | -11 -10 -10 -9 -9 -9 -8 -8 -7 -7 -7 -6 -5 -5 -5 -4 -4 ------- Run | Jun Mat Min Mat Min Exi Min Mat Fac Was Fac Fac Fac Was Fac Fac Ext Robot Analysis Total 14 | . 2 . 5 . . . 3 1 . 1 . 2 . . . . Derelict Logs Recovered 2 | . . 1 . 1 . . . . . . . . . . . . Drone Launches . | . . . . . . . . . . . . . . . . . Drone Recoveries . | . . . . . . . . . . . . . . . . . Exploration | -11 -10 -10 -9 -9 -9 -8 -8 -7 -7 -7 -6 -5 -5 -5 -4 -4 ------------- Run | Jun Mat Min Mat Min Exi Min Mat Fac Was Fac Fac Fac Was Fac Fac Ext Turns Passed 17537 | 83 1329 234 3809 901 860 182 3688 1242 105 1274 1745 510 111 888 340 236 Spaces Moved 17505 | 42 512 95 1539 355 357 68 1216 2785 303 2194 2832 1331 367 2306 768 435 Core 523 | . . . . . . . . . . . . . . . 96 427 Treads 4143 | 2 512 95 1539 355 357 68 1215 . . . . . . . . . Legs 40 | 40 . . . . . . . . . . . . . . . . Wheels . | . . . . . . . . . . . . . . . . . Hover . | . . . . . . . . . . . . . . . . . Flight 12799 | . . . . . . . 1 2785 303 2194 2832 1331 367 2306 672 8 Fastest Speed 6 | 120 160 240 160 160 240 240 160 26 26 26 23 23 23 23 6 50 Average Speed 72 | 121 214 240 202 239 240 240 237 26 26 26 23 23 23 23 24 50 Slowest Speed 321 | 160 240 320 320 240 240 240 321 106 26 29 26 23 23 90 100 97 Overloaded Moves 101 | . . . . . . . . . . . . . . . 101 . Propulsion Burnouts 1 | . . . . . . . . . . . . . . . 1 . Robots Hopped 35 | . . . . . . . . 2 . 4 15 3 . 11 . . Cave-ins Triggered . | . . . . . . . . . . . . . . . . . Exploration Rate (%) 52 | 3 72 28 99 62 72 16 69 56 95 56 58 35 85 50 13 30 Regions Visited 16 Branch Regions 5 Pre-discovered Areas 1 | . . . . . 1 . . . . . . . . . . . Known Exits Taken 6 | . . 1 . 1 . 1 . . . 1 1 . . 1 . . Unknown Exits Taken 6 | 1 1 . 1 . 1 . 1 . . . . . . . 1 . Scrap Searched 2 | . . 1 . 1 . . . . . . . . . . . . Spaces Dug 160 | . 1 . 2 . . . . 39 . 42 20 9 6 21 20 . Terrain Destroyed 358 | . 31 9 9 2 . 2 30 39 . 42 90 9 6 33 56 . Melee 150 | . 1 . . . . . . 39 . 42 20 9 6 21 12 . Projectile 11 | . . . 5 2 . 2 2 . . . . . . . . . AOE 197 | . 30 9 4 . . . 28 . . . 70 . . 12 44 . Terrain Rammed . | . . . . . . . . . . . . . . . . . Walls Destroyed . | . . . . . . . . . . . . . . . . . Machines Disabled . | . . . . . . . . . . . . . . . . . Actions | -11 -10 -10 -9 -9 -9 -8 -8 -7 -7 -7 -6 -5 -5 -5 -4 -4 --------- Run | Jun Mat Min Mat Min Exi Min Mat Fac Was Fac Fac Fac Was Fac Fac Ext Total 21397 | 53 639 98 1995 385 361 77 1782 3210 328 2814 3854 1482 383 2607 879 450 Wait 2882 | . 39 2 227 18 4 . 332 341 20 519 957 96 7 244 63 13 Move 17421 | 41 511 94 1538 354 356 67 1215 2781 302 2185 2801 1325 366 2283 767 435 Hop 35 | . . . . . . . . 2 . 4 15 3 . 11 . . Pick Up 111 | . 18 . 28 . 1 1 16 7 1 9 14 6 2 5 2 1 Fast Attach 54 | . 2 . 5 . . . 11 6 2 10 7 1 . 9 1 . Attach 48 | . 4 . 6 2 . . 9 5 . 1 4 4 1 3 9 . Detach 8 | . . . . . . . 1 . . . . 1 . 1 4 1 Swap 114 | 2 7 . 33 1 . 1 26 6 . 10 6 10 1 9 2 . Drop 145 | . 5 . 33 . . 2 46 13 3 14 12 4 . 13 . . Fire 336 | 10 51 2 123 10 . 6 123 . . . 5 . . . 6 . Melee 223 | . 1 . . . . . 1 49 . 51 33 32 6 25 25 . Ram . | . . . . . . . . . . . . . . . . . Kick . | . . . . . . . . . . . . . . . . . Crush 5 | . 1 . 2 . . . 2 . . . . . . . . . Escape Stasis 15 | . . . . . . . . . . 11 . . . 4 . . Rewire . | . . . . . . . . . . . . . . . . . Trap . | . . . . . . . . . . . . . . . . . Miscellaneous . | . . . . . . . . . . . . . . . . . Route ------- -11/Junkyard -10/Materials (discovered 3 exits: *Mat / [*Min x2]) -10/Mines (discovered 2 exits: *Mat x2) -9/Materials (discovered 4 exits: *Mat x3 / *Min) -9/Mines (discovered 3 exits: *Mat / *Exi / [*Zio]) -9/Exiles (discovered 2 exits: [*Min x2]) -8/Mines -8/Materials (discovered 2 exits: *Fac x2) -7/Factory (discovered 4 exits: *Fac x4) -7/Waste -7/Factory (discovered 8 exits: *Fac x4 / *Sto x2 / Low x2) -6/Factory (discovered 6 exits: *Fac x4 / [*Low x2]) -5/Factory (discovered 4 exits: *Fac x4) -5/Waste -5/Factory (discovered 5 exits: *Fac x4 / [*Upp]) -4/Factory -4/Extension History --------- Turn | Location | Event 1 | -11/Junkyard | Discovered new exit (range 3) 84 | -11/Junkyard | Entered Materials 330 | -10/Materials | Build established: Mutant 780 | -10/Materials | Discovered new exit (range 8) 1035 | -10/Materials | Discovered new exit (range 11) 1056 | -10/Materials | Discovered new exit (range 10) 1413 | -10/Materials | Entered Mines 1513 | -10/Mines | Discovered new exit (range 5) 1606 | -10/Mines | Identified exit to Materials 1647 | -10/Mines | Entered Materials 1647 | -9/Materials | Evolved 2 slots: Propulsion x1, Utility x1 2815 | -9/Materials | Discovered new exit (range 7) 2907 | -9/Materials | Identified exit to Materials 3147 | -9/Materials | Discovered new exit (range 9) 3660 | -9/Materials | Build established: Scavenger-Mutant 3891 | -9/Materials | Repaired Seismic Detector 4003 | -9/Materials | Discovered exit to Materials (range 13) 4047 | -9/Materials | First assault squad dispatched 4353 | -9/Materials | Discovered exit to Materials (range 13) 4901 | -9/Materials | Repaired Ion Engine 5456 | -9/Materials | Entered Mines 5509 | -9/Mines | Found a hidden stash of uninstalled traps 5555 | -9/Mines | Met a Derelict bent on vengeance 5557 | -9/Mines | Identified exit to Exiles 5798 | -9/Mines | Escorted by a lone wolf Derelict 6165 | -9/Mines | Discovered exit to Materials (range 9) 6219 | -9/Mines | A Derelict revealed a hidden shortcut to a safe place 6347 | -9/Mines | Deemed a non-threat by the Exiles lab entrance 6357 | -9/Mines | Entered Exiles 6357 | -9/Exiles | Accompanied by 1 ally 6427 | -9/Exiles | Discovered new exit (range 15) 6461 | -9/Exiles | Met 8R-AWN 6504 | -9/Exiles | Met EX-HEX 6669 | -9/Exiles | Met EX-DEC 6729 | -9/Exiles | Learned location of Zion (-7) 6797 | -9/Exiles | Met EX-BIN 6842 | -9/Exiles | Aligned with FarCom system 6845 | -9/Exiles | Given EX-Vault access code 6962 | -9/Exiles | Opened EX-Vault 6979 | -9/Exiles | Found Modified TNC 7037 | -9/Exiles | Warned to stay clear of 0b10 Research branches 7064 | -9/Exiles | Exiles lab attacked by MAIN.C 7198 | -9/Exiles | Discovered new exit (range 10) 7217 | -9/Exiles | Left Exiles lab with Modified TNC 7217 | -9/Exiles | Entered Mines 7390 | -8/Mines | Discovered exit to Materials (range 4) 7399 | -8/Mines | Entered Materials 7399 | -8/Materials | Evolved 2 slots: Utility x2 9071 | -8/Materials | Discovered new exit (range 16) 9933 | -8/Materials | Discovered new exit (range 16) 11087 | -8/Materials | Entered Factory 11087 | -7/Factory | Evolved 2 slots: Propulsion x1, Utility x1 11110 | -7/Factory | Identified exit to Factory 11375 | -7/Factory | Build established: Hacker-Sprinter 11560 | -7/Factory | Repaired Imp. VTOL Module 12015 | -7/Factory | Build established: Hacker-Scout 12329 | -7/Factory | Sucked down chute 12329 | -7/Factory | Entered Waste 12330 | -7/Waste | Met a frightened Derelict 12332 | -7/Waste | Spotted C-40 Crusher 12335 | -7/Waste | Spotted C-40 Crusher 12336 | -7/Waste | Spotted C-40 Crusher 12337 | -7/Waste | Spotted C-40 Crusher 12338 | -7/Waste | Spotted C-40 Crusher 12340 | -7/Waste | Spotted C-40 Crusher 12351 | -7/Waste | Warlord forces began an assault 12351 | -7/Waste | Found Prototype Processor 12351 | -7/Waste | Identified Exp. Terrain Scan Processor 12368 | -7/Waste | Allies destroyed C-40 Crusher 12373 | -7/Waste | Allies destroyed C-40 Crusher 12375 | -7/Waste | Allies destroyed C-40 Crusher 12377 | -7/Waste | Allies destroyed C-40 Crusher 12405 | -7/Waste | Allies destroyed C-40 Crusher 12413 | -7/Waste | Discovered new exit (range 13) 12434 | -7/Waste | Entered Factory 12782 | -7/Factory | Fabricated Imp. Cesium-ion Thruster? 12860 | -7/Factory | Fabricated Imp. Cesium-ion Thruster? 13160 | -7/Factory | Repaired Mni. Grenade Launcher 13268 | -7/Factory | Identified exit to Storage 13268 | -7/Factory | Identified exit to Lower Caves 13406 | -7/Factory | Central database locked down 13594 | -7/Factory | Repaired Imp. VTOL Module 13633 | -7/Factory | Repaired Scythe 13691 | -7/Factory | Repaired Mic. Fission Core 13708 | -7/Factory | Entered another Factory area 13708 | -6/Factory | Evolved 2 slots: Propulsion x1, Utility x1 14124 | -6/Factory | Identified exit to Factory 14447 | -6/Factory | Build established: Hacker-Ninja 14476 | -6/Factory | Found Prototype Launcher 14476 | -6/Factory | Identified Scatter Rocket Array 14492 | -6/Factory | Discovered new exit (range 5) 14623 | -6/Factory | Discovered new exit (range 9) 14637 | -6/Factory | Garrison activated, responded to threat 14738 | -6/Factory | Repaired Imp. Cesium-ion Thruster 14765 | -6/Factory | Repaired Structural Scanner 14874 | -6/Factory | Repaired Lyr. Light Armor Plating 15049 | -6/Factory | Build established: Hacker-Sprinter 15298 | -6/Factory | Fabricated Imp. Cesium-ion Thruster? 15453 | -6/Factory | Entered another Factory area 15453 | -5/Factory | Evolved 2 slots: Utility x2 15473 | -5/Factory | Identified exit to Factory 15529 | -5/Factory | Central database locked down 15829 | -5/Factory | Repaired Imp. Light Armor Plating 15901 | -5/Factory | Fabricated Cld. VTOL Module (x1) 15963 | -5/Factory | Sucked down chute 15963 | -5/Factory | Entered Waste 15964 | -5/Waste | Met a frightened Derelict 15975 | -5/Waste | Spotted C-40 Crusher 15978 | -5/Waste | EMP discharged 15978 | -5/Waste | System corruption reached 10% 15981 | -5/Waste | Spotted C-40 Crusher 15982 | -5/Waste | Spotted C-40 Crusher 15982 | -5/Waste | Spotted C-40 Crusher 15982 | -5/Waste | Spotted C-40 Crusher 15984 | -5/Waste | Spotted C-40 Crusher 15990 | -5/Waste | Discovered new exit (range 14) 16074 | -5/Waste | Entered Factory 16260 | -5/Factory | Discovered new exit (range 6) 16522 | -5/Factory | Spotted B-75 Beast 16540 | -5/Factory | Central database locked down 16647 | -5/Factory | Repaired Imp. Light Armor Plating 16668 | -5/Factory | Build established: Wizard-Scout 16714 | -5/Factory | Fabricated Cld. VTOL Module? 16724 | -5/Factory | Fabricated Cld. VTOL Module? 16737 | -5/Factory | Fabricated Mni. Grenade Launcher (x1) 16801 | -5/Factory | Repaired Mic. Fission Core 16837 | -5/Factory | Repaired Cld. VTOL Module 16938 | -5/Factory | Repaired Power Sword 16962 | -5/Factory | Entered another Factory area 16962 | -4/Factory | Evolved 2 slots: Power x1, Propulsion x1 17294 | -4/Factory | Core integrity fell below 50% 17299 | -4/Factory | Discovered new exit (range 11) 17302 | -4/Factory | Entered Extension 17331 | -4/Extension | Lost 14 parts (2p3n8u1w) 17531 | -4/Extension | Spotted B-86 Titan 17533 | -4/Extension | Spotted B-86 Titan 17538 | -4/Extension | Core integrity fell below 20% 17538 | -4/Extension | Destroyed by H-77 Assassin with Coil Gun Last Messages --------------- 17477_ 8C#N2&CGX0OC 17534_ Cld. VTOL Module destroyed. 17534_ Penetrated by Slug. 17534_ T-07 Excavator destroyed. 17535_ Penetrated by Slug. 17536_ System corrupted: Matter fused (-6). 17537_ Penetrated by Slug. 17537_ Machine Analyzer destroyed. 17537_ Penetrated by Slug. 17538_ Slug penetrates Wall. 17538_ Knocked back. 17538_ Penetrated by Slug. 17538_ Slug penetrates Machine. 17538_ Machine disabled. 17538_ Penetrated by Slug. [Achievement: 10k Club] Map ----- +----------------------------------------------------+ | ?????????????????????????????????????????????????? | | ?????????????????????????????????????????????????? | | ?????????????????????????????????????????????????? | | ?????????????????????????????????????????????????? | | ?????????????????????????????????????????????????? | | ?????????????????????????????????????????????????? | | ?????????????????????????????????????????????????? | | ?????????????????????????????????????????????????? | | ?????????????????????????????????????????????????? | | ?????????????????????????????????????????????????? | | ??????????????????????? ?????????????????????????? | | ??????????????????????? ????????????????????????? | | ??????????????????????? ????????????????????????? | | ??????????????????????? ????????????????????????? | | ??????????????????????? #???????????????????????? | | ??????????????????????? #???????????????????????? | | ??????????????????????? #???????????????????????? | | ???????????????????????# #??##?##????????????????? | | ?????????????????????###h### ## ### ?????????????? | | ?????????????????????#"" ""Y Y "" ""???????????? | | ?????????????????????# "h "w" #??????????? | | ?????????????????????# #??????????? | | ?????????????????##??# #??????????? | | ##################;### ##?????????? | | w???????? | | @% ????????? | | % ????????? | | | % ????????? | | =% R ????????? | | ###############;###### BB BB ##?????????? | | #????????????#??????# BB BB #??????????? | | #???????????????????# #??????????? | | !#???????????????????; #??????????? | | ##??????????????????## #??????????? | | ?????????????????????######T#"""######???????????? | | ???????????????????????????##????????????????????? | | ?????????????????????????????????????????????????? | | | | | | | | | | | | | | | | | | | | | | | | | | | +----------------------------------------------------+ Best States ------------- Heat Dissipation 43 Energy Generation 25 Energy Capacity 325 Matter Stores 300 Matter Capacity 300 Sight Range 20 Robot Scan Range 14 Terrain Scan Density 10 ECM Strength 2 Armor Coverage 825 Power Shielding 33 Propulsion Shielding 66 Evasion (%) 66 Recoil Reduction 3 Offensive Hacking 50 Defensive Hacking 10 Item Schematics ----------------- Hacking Suite | -8/Materials | Hacked Imp. Cesium-ion Thruster | -7/Factory | Scanalyzed Mic. Nuclear Core | -7/Factory | Hacked Imp. Light Armor Plating | -7/Factory | Hacked Mic. Fission Core | -7/Factory | Scanalyzed Cld. VTOL Module | -5/Factory | Hacked Mni. Grenade Launcher | -5/Factory | Hacked Robot Schematics ------------------ S-27 Virus | -6/Factory | Hacked Fabricated ------------ Imp. Cesium-ion Thruster | x1 | -7/Factory Imp. Cesium-ion Thruster | x1 | -7/Factory Imp. Cesium-ion Thruster | x1 | -6/Factory Cld. VTOL Module | x1 | -5/Factory Cld. VTOL Module | x1 | -5/Factory Cld. VTOL Module | x1 | -5/Factory Mni. Grenade Launcher | x1 | -5/Factory Alien Tech Used ----------------- None Achievements -------------- 10k Club Armchair Analyst Below Can't Catch Me GoHome() Just What I Needed Let's See Who's Tougher Maybe Next Time I'll Detach My Launcher Part-time Excavator Party Time Prolific Hacker Speed Demon System Compromised The More The Merrier Whoosh! root@ Challenges ------------ None Game ------ Seed TrapSupersonicExoskeleton Manual? 0 Play Time 09:35:38 Cumulative 28.8 hours Start 2023.11.23 @ 10:14:37 End 2023.11.28 @ 20:16:06 Sessions 29 Manual Loads 0 Difficulty Rogue Special Mode None Game No. 9 Rogue 8 Adventurer 1 Explorer 0 Win Type - Total 0 Types 0/0/0/0/0/0/0/0/0 Lore% 16 Gallery% 15 Achievement% 15 Wizard Run 0 Options --------- ASCII 0 Keyboard 0 Movement Numpad Keybinds 0 Fullscreen 2 Font 36/Terminus Map View 76x50 Tactical HUD 1 Map Filters NONE Filters NONE Steam 1 RUN: 1b9ce1b9-e059-4c03-91ed-7705b4414dd3